bitfinex-derivatives/quotes_ETHF0:USTF0_20250330
["timestamp","ask_amount","ask_price","bid_price","bid_amount"]
[1743361428215,1.4943,1831.0,1830.8,1.4213]
[1743361428414,1.4943,1831.0,1830.9,1.4213]
[1743361429113,2.58701,1831.0,1830.9,1.4213]
[1743361429315,1.4943,1831.0,1830.9,1.4213]
[1743361429720,2.58701,1831.0,1830.9,1.4213]
[1743361430510,1.09283,1830.8,1830.7,3.21598934]
[1743361430713,1.09283,1830.8,1830.7,0.00818934]
[1743361430913,1.09283,1830.8,1830.7,0.66621947]
[1743361431314,4.30063,1830.8,1830.7,0.66621947]
[1743361431713,6.80063,1830.8,1830.7,0.66621947]
[1743361432119,6.80063,1830.8,1830.7,0.00818934]
[1743361432719,8.23023,1830.8,1830.7,0.00818934]
[1743361433020,1.09325,1830.1,1829.8,1.09338]
[1743361433222,1.09325,1830.1,1829.9,1.4079]
[1743361433423,1.4563,1830.0,1829.9,1.4079]
[1743361433923,1.4563,1830.0,1829.9,2.50127]
[1743361434125,1.4563,1830.0,1829.9,1.4079]
[1743361434626,1.4563,1830.0,1829.9,2.06765601]
[1743361435024,1.4563,1830.0,1829.9,3.16102601]
[1743361435225,1.4563,1830.0,1829.9,2.06765601]
[1743361435824,2.54961,1830.0,1829.9,2.06765601]
[1743361436020,1.4563,1830.0,1829.9,2.06765601]
[1743361436324,1.4563,1830.0,1829.9,0.65975601]
[1743361436325,2.54961,1830.0,1829.9,0.65975601]
[1743361436626,2.54961,1830.0,1829.9,2.15535601]
[1743361437027,2.54961,1830.0,1829.9,0.65975601]
[1743361437228,5.75741,1830.0,1829.9,0.65975601]
[1743361438122,8.25741,1830.0,1829.9,0.65975601]
[1743361438827,8.25741,1830.0,1829.8,0.00818934]
[1743361438828,1.09337,1829.9,1829.8,0.00818934]
[1743361439027,7.39137,1829.9,1829.8,0.00818934]
[1743361439226,14.26507,1829.9,1828.8,0.731]
[1743361439425,3.2078,1829.3,1828.9,1.4173]
[1743361439620,1.0939,1829.0,1828.9,1.4173]
[1743361441817,0.00818934,1829.1,1828.9,3.9173]
[1743361442027,0.00818934,1829.1,1829.0,1.0939]
[1743361442228,8.0458,1829.5,1829.3,1.09372]
[1743361442422,9.13941,1829.5,1829.4,1.3652]
[1743361443925,8.0458,1829.5,1829.4,1.3652]
[1743361444126,5.93161,1829.5,1829.4,1.3652]
[1743361444629,1.10173934,1829.6,1829.4,2.45882]
[1743361444826,1.10173934,1829.6,1829.4,2.45885]
[1743361445129,3.2078,1831.0,1829.5,22.21908863]
[1743361445330,1.3819,1830.7,1830.4,1.09303]
[1743361445518,1.3819,1830.7,1830.5,1.3635]
[1743361445830,1.09286,1830.8,1830.5,5.6643]
[1743361446220,1.0929,1830.7,1830.5,4.57948934]
[1743361446424,1.09295,1830.6,1830.5,4.57948934]
[1743361446625,1.09293,1830.7,1830.5,1.37168934]
[1743361446826,1.09295,1830.6,1830.5,1.37168934]
[1743361447026,1.3819,1830.7,1830.5,1.37168934]
[1743361447027,2.4748,1830.7,1830.5,1.37168934]
[1743361447433,5.94905934,1830.8,1830.6,3.2078]
[1743361447731,5.94905934,1830.8,1830.7,1.3635]
[1743361448331,4.85618934,1830.8,1830.7,1.3635]
[1743361448831,7.39681934,1830.8,1830.7,1.3635]
[1743361449027,0.00818934,1830.8,1830.7,1.3635]
[1743361449235,0.00818934,1830.8,1830.7,2.45639]
[1743361449434,1.4478,1831.1,1830.7,1.3635]
[1743361449627,3.2078,1831.4,1830.9,4.30053]
[1743361449628,1.09262,1831.2,1830.9,4.30053]
[1743361449934,1.09265,1831.1,1830.7,3.2078]
[1743361450137,1.09275,1831.0,1830.8,1.3967]
[1743361450336,1.09287,1830.8,1830.5,4.30899934]
[1743361450538,1.09287,1830.8,1830.6,1.3967]
[1743361450725,1.4478,1830.7,1830.6,1.3967]
[1743361450925,1.4478,1830.7,1830.6,2.48965]
[1743361451123,1.4478,1830.7,1830.6,2.04971433]
[1743361451730,8.0308,1831.4,1830.6,2.04971433]
[1743361452037,1.5058,1831.2,1830.9,3.2078]
[1743361452330,1.5058,1831.2,1831.0,3.13948433]
[1743361452732,1.5058,1831.2,1831.0,2.04681433]
[1743361452932,1.5058,1831.2,1831.0,1.3938]
[1743361452933,2.59842,1831.2,1831.0,1.3938]
[1743361453133,1.09265,1831.1,1831.0,1.3938]
[1743361453337,1.5058,1831.2,1830.9,3.2078]
[1743361453532,1.5058,1831.2,1830.7,0.7011]
[1743361453533,1.09265,1831.1,1831.0,0.65271868]
[1743361454031,1.09289,1830.7,1830.6,3.2078]
[1743361454336,4.23745,1831.1,1830.6,5.69312]
[1743361454337,4.30059,1830.9,1830.6,5.69312]
[1743361454529,1.4619,1830.8,1830.6,5.69312]
[1743361454730,1.4619,1830.8,1830.7,1.3924]
[1743361455132,2.55473,1830.8,1830.7,1.3924]
[1743361455933,1.4619,1830.8,1830.7,1.3924]
[1743361456734,2.55473,1830.8,1830.7,1.3924]
[1743361458039,1.09289,1830.7,1830.6,3.2078]
[1743361458337,2.48479,1830.7,1830.6,3.2078]
[1743361458736,1.09295,1830.6,1830.5,0.00818934]
[1743361459039,7.23885,1830.6,1830.5,0.00818934]
[1743361459337,6.1459,1830.6,1830.2,3.9089]
[1743361459643,1.09313,1830.3,1830.2,3.2078]
[1743361459834,1.09312,1830.4,1830.2,3.2078]
[1743361460035,3.2078,1831.1,1830.2,16.39546633]
[1743361460337,1.3793,1831.3,1831.2,1.09259]
[1743361460541,1.09249,1831.4,1831.1,1.09263]
[1743361460736,1.10067934,1831.4,1831.2,1.3992]
[1743361460930,1.10067934,1831.4,1831.2,5.69957]
[1743361460931,0.00818934,1831.4,1831.2,5.69957]
[1743361461135,0.00818934,1831.4,1831.3,3.2078]
[1743361461335,0.00818934,1831.4,1831.3,4.30033]
[1743361461543,0.00818934,1831.4,1831.3,3.2078]
[1743361461942,0.00818934,1831.4,1831.3,4.30033]
[1743361462544,4.764,1831.7,1831.5,1.09239]
[1743361462836,5.85629,1831.7,1831.6,1.3992]
[1743361463039,1.3793,1831.7,1831.6,1.3992]
[1743361463245,4.748,1831.8,1831.6,1.3992]
[1743361463936,4.748,1831.8,1831.6,2.49155]
[1743361464139,1.09219,1831.9,1831.6,1.3992]
[1743361464442,50.483,1832.1,1831.7,1.09229]
[1743361464636,1.4942,1832.0,1831.8,1.3891]
[1743361464838,3.2078,1832.8,1832.2,1.09195]
[1743361465147,4.29948,1832.8,1832.3,1.3891]
[1743361465352,1.0917,1832.7,1832.3,9.51028032]
[1743361465540,1.4942,1832.7,1832.4,1.3891]
[1743361465934,1.09181,1832.5,1832.4,1.3891]
[1743361466135,3.2078,1832.5,1832.3,0.00818934]
[1743361466346,1.09176,1832.6,1832.3,0.00818934]
[1743361466639,1.3595,1832.5,1832.3,2.47998934]
[1743361466842,1.3595,1832.5,1832.4,1.3799]
[1743361468847,2.45131,1832.5,1832.3,0.00818934]
[1743361469048,1.3595,1832.5,1832.3,0.00818934]
[1743361469348,1.09187,1832.4,1832.3,1.50798934]
[1743361469551,5.79787,1832.4,1832.3,0.00818934]
[1743361469940,7.21507,1832.4,1832.3,0.00818934]
[1743361470446,7.21307,1832.4,1832.3,0.00818934]
[1743361471944,6.1212,1832.4,1832.3,0.00818934]
[1743361472143,7.21307,1832.4,1832.3,0.00818934]
[1743361472949,1.09205,1832.1,1832.0,3.2078]
[1743361473748,1.09215,1832.0,1831.8,1.4576]
[1743361474052,5.78027934,1832.1,1831.8,2.54983]
[1743361474254,5.78027934,1832.1,1831.9,1.4576]
[1743361474550,0.00818934,1832.1,1831.9,1.4576]
[1743361474751,1.09211,1832.0,1831.9,1.4576]
[1743361474951,2.55921,1832.0,1831.9,1.4576]
[1743361475646,1.4671,1832.0,1831.7,3.21598934]
[1743361475851,1.09223,1831.8,1831.7,4.60438934]
[1743361476050,1.09223,1831.8,1831.7,0.00818934]
[1743361476254,2.55713,1831.8,1831.7,0.00818934]
[1743361480546,3.2078,1832.9,1831.7,9.07777428]
[1743361480850,3.2078,1832.9,1832.5,3.2078]
[1743361481354,2.49177,1832.6,1832.2,1.09194]
[1743361481648,1.09187,1832.4,1832.3,1.3662]
[1743361481849,3.2078,1832.5,1831.8,0.7526]
[1743361482051,2.55679,1832.3,1831.9,5.66615]
[1743361482248,1.09201,1832.2,1831.9,4.574]
[1743361482554,1.09196,1832.3,1832.0,1.09211]
[1743361482750,1.4648,1832.3,1832.1,5.66604]
[1743361483053,4.74,1832.3,1832.2,1.3662]
[1743361486057,5.83193,1832.3,1832.2,1.3662]
[1743361486258,6.2269,1832.3,1832.2,1.3662]
[1743361486458,3.8954,1833.0,1832.2,1.3662]
[1743361486652,1.09182,1832.5,1832.2,2.45816]
[1743361486854,4.699,1832.6,1832.3,3.2078]
[1743361487054,1.09187,1832.4,1832.3,3.2078]
[1743361487250,1.4869,1832.5,1832.3,3.2078]
[1743361487454,1.0919,1832.4,1832.1,3.2078]
[1743361487651,2.57876,1832.5,1832.2,1.4662]
[1743361488052,2.57876,1832.5,1832.2,2.55819]
[1743361488457,2.57876,1832.5,1832.2,1.4662]
[1743361489260,1.09188,1832.4,1832.2,1.4662]
[1743361489457,1.09193,1832.3,1832.2,1.4662]
[1743361490558,1.09199,1832.2,1832.1,3.2078]
[1743361490761,5.76799,1832.2,1832.1,3.2078]
[1743361491462,5.76799,1832.2,1831.9,0.7068]
[1743361491463,4.676,1832.2,1831.9,3.2078]
[1743361491658,1.4123,1832.1,1831.9,3.2078]
[1743361491866,2.5044,1832.1,1831.9,4.7087]
[1743361492059,4.684,1832.4,1832.0,1.09211]
[1743361492265,1.09206,1832.1,1831.9,3.2078]
[1743361492566,2.50441,1832.0,1831.9,4.7087]
[1743361493260,1.4123,1832.0,1831.9,4.7087]
[1743361493755,2.50441,1832.0,1831.9,4.7087]
[1743361493960,1.4123,1832.0,1831.9,4.7087]
[1743361494364,3.2078,1832.4,1831.9,7.2087]
[1743361494669,4.654,1832.8,1832.3,4.29973]
[1743361494864,1.09177,1832.6,1832.4,1.3848]
[1743361495374,1.09181,1832.5,1832.4,1.3848]
[1743361495570,1.0918,1832.6,1832.4,1.3848]
[1743361496065,5.7338,1832.6,1832.4,1.3848]
[1743361496763,5.7338,1832.6,1832.5,3.2078]
[1743361496764,4.642,1832.6,1832.5,3.2078]
[1743361497067,2.46942,1832.7,1832.5,3.2078]
[1743361497268,3.2078,1833.0,1832.6,1.4566]
[1743361497569,7.11098,1832.9,1832.6,2.55653934]
[1743361497765,1.3924,1832.9,1832.7,2.54829]
[1743361497964,3.2078,1833.4,1832.9,1.09158]
[1743361498164,1.3924,1833.4,1833.0,1.4566]
[1743361498466,1.3924,1833.4,1833.0,11.705787]
[1743361498661,4.624,1833.6,1833.2,3.2078]
[1743361498872,1.09132,1833.4,1833.3,1.4566]
[1743361499664,1.3924,1833.5,1833.0,3.2078]
[1743361499665,4.631,1833.5,1833.1,2.54803]
[1743361499872,1.0913,1833.4,1833.2,4.6934]
[1743361500573,6.0213,1833.5,1833.2,4.6934]
[1743361500772,6.0213,1833.5,1833.2,1.4856]
[1743361500968,1.09134,1833.3,1833.2,1.4856]
[1743361501169,5.73416,1833.6,1833.2,5.78476]
[1743361501473,1.09125,1833.5,1833.2,5.78478]
[1743361501867,5.7342,1833.6,1833.2,5.78478]
[1743361502172,1.0912,1833.6,1833.2,4.6934]
[1743361502367,5.7322,1833.6,1833.3,1.09132]
[1743361502567,1.09122,1833.5,1833.4,1.4856]
[1743361503077,1.0915,1833.1,1833.0,3.2078]
[1743361503373,1.4513,1833.5,1833.0,3.17639102]
[1743361503579,1.06005102,1833.1,1833.0,3.17639102]
[1743361503875,1.06005102,1833.1,1833.0,3.14498204]
[1743361504075,5.71942,1833.2,1833.0,3.14498204]
[1743361504373,2.51135102,1833.1,1833.0,3.14498204]
[1743361504570,1.41989102,1833.1,1832.8,5.68793]
[1743361504771,2.51136102,1833.1,1832.9,1.3885]
[1743361505073,1.41989102,1833.1,1832.9,2.48008]
[1743361505372,1.41989102,1833.1,1832.9,1.3885]
[1743361505561,1.09152,1833.0,1832.9,1.3885]
[1743361505766,2.51139102,1833.1,1832.9,1.3885]
[1743361506374,1.09152,1833.0,1832.9,1.3885]
[1743361506673,1.0917,1832.7,1832.6,0.69458934]
[1743361506871,1.0917,1832.7,1832.6,0.00818934]
[1743361508575,5.6767,1832.7,1832.6,0.00818934]
[1743361510775,7.0361,1832.7,1832.6,0.00818934]
[1743361510977,1.09199,1832.2,1832.1,1.4294]
[1743361511671,2.45139,1832.2,1832.1,1.4294]
[1743361512273,1.3594,1832.2,1832.1,1.4294]
[1743361512480,2.45139,1832.2,1832.1,1.4294]
[1743361512977,1.09205,1832.1,1832.0,3.21598934]
[1743361513277,1.09235,1831.6,1831.5,3.9512]
[1743361513577,2.73029,1832.0,1831.5,3.9512]
[1743361513578,5.64233,1831.7,1831.5,3.2078]
[1743361513782,1.09247,1831.4,1831.3,3.2078]
[1743361513976,4.548,1831.4,1831.3,3.2078]
[1743361514181,4.547,1831.5,1831.4,1.09245]
[1743361514384,4.547,1831.5,1831.4,1.3783]
[1743361514686,5.63941,1831.5,1831.4,1.3783]
[1743361515183,4.547,1831.5,1831.4,1.3783]
[1743361515387,5.63941,1831.5,1831.4,1.3783]
[1743361516481,4.527,1831.9,1831.4,3.8783]
[1743361516687,1.09224,1831.8,1831.6,1.09233]
[1743361516880,4.527,1831.9,1831.7,1.3637]
[1743361517080,1.09223,1831.8,1831.7,1.3637]
[1743361518083,2.54693,1831.8,1831.7,1.3637]
[1743361518490,5.2031,1832.0,1831.7,4.5715]
[1743361518689,1.09223,1831.8,1831.7,1.3637]
[1743361519689,1.09247,1831.4,1831.3,3.21598934]
[1743361519884,5.60447,1831.4,1831.3,3.21598934]
[1743361520886,5.60447,1831.4,1831.3,0.00818934]
[1743361521083,1.0928,1830.9,1830.7,1.4327]
[1743361521393,1.09283,1830.8,1830.7,1.4327]
[1743361521683,1.09303,1830.5,1830.3,0.6831]
[1743361521890,7.08551,1830.7,1830.5,1.4327]
[1743361522189,0.00818934,1830.6,1830.5,1.4327]
[1743361522489,1.10113934,1830.6,1830.5,1.4327]
[1743361522689,2.58973934,1830.6,1830.5,1.4327]
[1743361522992,1.09301,1830.5,1830.4,3.2078]
[1743361523183,2.58161,1830.5,1830.4,3.2078]
[1743361523585,1.09313,1830.3,1830.2,3.21598934]
[1743361523792,4.493,1830.3,1829.8,3.9432]
[1743361523993,1.4886,1830.2,1830.0,3.2078]
[1743361524292,2.58181,1830.2,1830.0,4.6224]
[1743361524590,1.09325,1830.1,1830.0,1.4146]
[1743361524787,2.47075,1830.1,1830.0,1.4146]
[1743361524987,1.3775,1830.1,1830.0,1.4146]
[1743361525591,3.8775,1830.1,1829.4,0.5472]
[1743361525789,1.094,1828.9,1828.5,0.5472]
[1743361525990,3.2078,1829.1,1828.6,3.2078]
[1743361526186,4.65,1829.2,1828.6,12.82276335]
[1743361526386,4.65,1829.2,1828.7,1.77476]
[1743361526593,4.65,1829.2,1828.8,1.4146]
[1743361526894,4.65,1829.2,1828.8,1.42278934]
[1743361526895,0.00818934,1829.1,1828.8,1.42278934]
[1743361527091,1.09391,1829.0,1828.8,1.42278934]
[1743361527590,1.09396,1828.9,1828.8,1.42278934]
[1743361527889,0.00818934,1829.1,1828.8,4.63058934]
[1743361528098,0.00818934,1829.1,1828.9,1.4212]
[1743361528394,1.0939,1829.0,1828.9,1.4212]
[1743361528688,1.10205934,1829.1,1828.9,1.4212]
[1743361528895,0.00818934,1829.1,1829.0,1.0939]
[1743361529083,1.09369,1829.4,1829.0,5.7229]
[1743361529284,4.642,1829.5,1829.0,5.7229]
[1743361529488,1.0937,1829.4,1829.0,5.7229]
[1743361530094,1.09373,1829.3,1829.0,5.7229]
[1743361530498,1.09373,1829.3,1829.0,4.629]
[1743361530702,1.09373,1829.3,1829.0,5.7229]
[1743361530895,1.10188934,1829.4,1829.0,5.7229]
[1743361531301,1.09373,1829.3,1829.2,3.2078]
[1743361531689,1.09373,1829.3,1829.2,4.55794357]
[1743361532089,0.00818934,1829.4,1829.2,3.2078]
[1743361532287,1.10185934,1829.4,1829.3,1.4398]
[1743361532492,1.09387,1829.1,1828.9,3.2078]
[1743361532689,1.0939,1829.0,1828.9,4.6476]
[1743361532891,1.0939,1829.0,1828.9,1.4398]
[1743361533294,1.0939,1829.0,1828.9,2.7906513]
[1743361533894,4.3017,1829.0,1828.9,1.3508513]
[1743361534096,4.3017,1829.0,1828.9,0.51955819]
[1743361534390,1.09396,1828.9,1828.8,2.26419918]
[1743361534593,1.09396,1828.9,1828.8,2.78189318]
[1743361534797,7.06166,1828.9,1828.8,2.78189318]
[1743361535689,7.53554691,1828.9,1828.8,2.78189318]
[1743361536292,6.44158691,1828.9,1828.8,2.7822208]
[1743361536486,6.44158691,1828.9,1828.8,5.9900208]
[1743361536891,7.06166,1828.9,1828.8,5.9900208]
[1743361537301,5.9677,1828.9,1828.8,5.9900208]
[1743361537495,7.06166,1828.9,1828.8,4.64368934]
[1743361537896,5.69996,1828.9,1828.8,4.64368934]
[1743361538397,4.606,1828.9,1828.8,4.64368934]
[1743361538599,4.606,1828.9,1828.8,5.99028547]
[1743361538796,5.69996,1828.9,1828.8,2.78248547]
[1743361539000,1.09386,1829.1,1828.8,2.78248547]
[1743361539197,5.65685,1829.1,1828.9,3.87993613]
[1743361539392,5.65685,1829.1,1829.0,1.34659613]
[1743361539599,5.65685,1829.1,1829.0,2.78599613]
[1743361539797,5.65685,1829.1,1829.0,1.95732159]
[1743361540101,6.13119141,1829.1,1829.0,0.51792159]
[1743361540300,7.49219141,1829.1,1829.0,0.51792159]
[1743361542299,1.09396,1828.9,1828.8,0.00818934]
[1743361542495,5.94257,1829.0,1828.6,0.82939549]
[1743361542701,5.94257,1829.0,1828.3,0.82939549]
[1743361542702,3.2078,1828.7,1828.3,0.82939549]
[1743361542898,4.30204,1828.5,1828.4,1.4693]
[1743361543296,5.70384,1828.5,1828.4,1.4693]
[1743361543806,1.09426,1828.4,1828.3,0.00818934]
[1743361544003,2.49606,1828.4,1828.3,0.00818934]
[1743361544197,0.48278499,1828.5,1828.3,0.00818934]
[1743361544398,0.48278499,1828.5,1828.3,2.57176934]
[1743361544697,0.48278499,1828.5,1828.4,1.4693]
[1743361544898,1.10238934,1828.5,1828.4,1.4693]
[1743361545297,1.09426,1828.4,1828.3,0.00818934]
[1743361545502,7.08756,1828.4,1828.3,0.00818934]
[1743361545803,7.08756,1828.4,1828.3,1.45248934]
[1743361546799,7.08756,1828.4,1828.3,0.00818934]
[1743361547002,7.56066665,1828.4,1828.3,0.00818934]
[1743361547600,6.46640665,1828.4,1827.8,1.4527]
[1743361547799,1.09448,1828.1,1827.9,2.53884]
[1743361547997,1.0945,1828.0,1827.9,4.6521]
[1743361548200,2.5658,1828.0,1827.9,1.4443]
[1743361548711,2.5658,1828.0,1827.7,3.2078]
[1743361548712,1.09462,1827.8,1827.7,3.2078]
[1743361549009,1.4713,1828.0,1827.7,4.6253]
[1743361549200,5.59247,1828.1,1827.9,1.09456]
[1743361549402,5.59247,1828.1,1828.0,1.4175]
[1743361549796,1.09458,1827.9,1827.7,4.30245]
[1743361550101,1.09458,1827.9,1827.8,1.4175]
[1743361550298,1.09458,1827.9,1827.2,5.2074]
[1743361550299,11.6778,1827.9,1826.8,3.2078]
[1743361550608,1.09489,1827.4,1826.8,12.39453998]
[1743361550808,5.61589,1827.4,1827.2,1.09496]
[1743361551006,5.61589,1827.4,1827.3,1.4175]
[1743361551605,1.09498,1827.2,1827.0,4.30288]
[1743361551810,1.4188,1827.3,1827.1,1.3872]
[1743361552009,2.51377,1827.3,1827.1,1.3872]
[1743361552310,2.51372,1827.3,1827.1,1.3872]
[1743361552701,2.51372,1827.3,1827.1,2.48223]
[1743361553008,2.51372,1827.3,1827.2,1.3872]
[1743361553305,4.521,1827.4,1827.2,1.3872]
[1743361553515,0.00818934,1827.5,1827.4,1.09486]
[1743361554106,0.00818934,1827.5,1827.4,4.30266]
[1743361554604,5.97,1828.0,1827.4,5.7078]
[1743361554605,3.2078,1828.0,1827.4,5.7078]
[1743361554809,2.53722,1827.9,1827.6,1.09469]
[1743361555003,1.09462,1827.8,1827.7,1.4913]
[1743361555204,1.4426,1827.8,1827.7,1.4913]
[1743361555406,7.1504,1827.8,1827.0,3.2078]
[1743361555605,1.09498,1827.2,1827.1,1.4913]
[1743361555903,1.09496,1827.3,1827.2,0.00818934]
[1743361556110,2.53756,1827.3,1827.2,0.00818934]
[1743361556406,7.7278,1827.4,1827.2,3.21598934]
[1743361556407,4.518,1827.4,1827.2,3.21598934]
[1743361556615,5.61287,1827.4,1827.3,1.4913]
[1743361557106,16.1958,1827.4,1826.2,3.71630967]
[1743361557312,3.2078,1826.7,1826.4,1.4913]
[1743361557507,2.52378,1826.6,1826.4,1.4913]
[1743361558600,1.4284,1826.6,1826.4,1.4913]
[1743361559004,1.0954,1826.5,1826.4,1.4913]
[1743361559607,3.21601243,1826.7,1826.4,1.4913]
[1743361559805,0.00821243,1826.7,1826.5,1.0954]
[1743361560006,0.00821243,1826.7,1826.6,1.4327]
[1743361560817,0.00821243,1826.7,1826.6,5.73584]
[1743361561117,0.00821243,1826.7,1826.6,2.52804]
[1743361561513,0.00821243,1826.7,1826.6,1.4327]
[1743361563014,1.10349243,1826.7,1826.6,1.4327]
[1743361563614,0.00821243,1826.7,1826.6,1.4327]
[1743361564517,1.10349243,1826.7,1826.6,1.4327]
[1743361564719,2.50729243,1826.7,1826.6,1.4327]
[1743361564919,1.41201243,1826.7,1826.6,1.4327]
[1743361565319,2.50729243,1826.7,1826.6,1.4327]
[1743361567319,1.09538,1826.6,1826.2,4.26345395]
[1743361567627,2.48288,1826.6,1826.3,1.4187]
[1743361567919,1.3875,1826.6,1826.3,1.4187]
[1743361568111,1.09546,1826.4,1826.3,1.4187]
[1743361569216,1.09546,1826.4,1825.9,0.50790146]
[1743361569217,1.3875,1826.4,1825.9,0.50790146]
[1743361569521,3.2078,1826.3,1826.0,1.4187]
[1743361569720,0.00821243,1826.7,1826.0,8.49859462]
[1743361570029,1.10354243,1826.7,1826.5,1.09539]
[1743361570221,0.00821243,1826.7,1826.6,1.4888]
[1743361570414,1.10349243,1826.7,1826.6,1.4888]
[1743361570921,0.00821243,1826.7,1826.6,2.58414]
[1743361571221,0.00821243,1826.7,1826.6,3.09274093]
[1743361571421,0.00821243,1826.7,1826.6,2.58414]
[1743361571617,0.00821243,1826.7,1826.6,3.09296534]
[1743361571820,0.00821243,1826.7,1826.6,2.58414]
[1743361572122,0.00821243,1826.7,1826.6,3.09296534]
[1743361572821,0.00821243,1826.7,1826.6,2.58414]
[1743361573221,0.00821243,1826.7,1826.6,3.09296534]
[1743361573617,0.00821243,1826.7,1826.6,2.58414]
[1743361574127,0.00821243,1826.7,1826.6,3.0935635]
[1743361574128,1.45951243,1826.7,1826.6,3.0935635]
[1743361574325,1.45951243,1826.7,1826.6,2.58414]
[1743361574624,2.55479243,1826.7,1826.6,1.4888]
[1743361574818,1.0954,1826.5,1826.4,0.50975115]
[1743361575020,1.45951243,1826.7,1826.5,1.0954]
[1743361575212,2.55484243,1826.7,1826.6,0.50975115]
[1743361575417,2.55484243,1826.7,1826.6,1.60509115]
[1743361575418,1.45951243,1826.7,1826.6,1.60509115]
[1743361575623,1.45951243,1826.7,1826.6,1.60558175]
[1743361577534,0.00821243,1826.7,1826.6,1.60558175]
[1743361577727,1.4072,1827.1,1827.0,1.0951]
[1743361577927,1.4072,1827.1,1827.0,1.60534175]
[1743361578223,2.50224,1827.1,1827.0,0.51024175]
[1743361578624,0.6837,1827.4,1827.0,0.51024175]
[1743361578923,0.00821243,1827.2,1827.1,6.27058175]
[1743361579129,0.00821243,1827.2,1827.1,1.60528175]
[1743361580523,4.40521243,1827.2,1826.3,0.548]
[1743361580730,3.2078,1826.5,1826.0,4.16081346]
[1743361580923,3.2078,1826.6,1826.1,0.548]
[1743361581223,4.43,1826.7,1826.4,1.09543]
[1743361581430,8.72907,1826.8,1826.2,0.694]
[1743361581623,3.2078,1826.6,1826.3,0.6892]
[1743361581824,1.09535,1826.6,1826.3,1.78469]
[1743361582025,2.50172,1826.7,1826.4,1.09546]
[1743361582426,1.4064,1826.7,1826.3,0.6892]
[1743361582627,3.2078,1826.6,1826.0,0.9539201]
[1743361582830,1.09559,1826.2,1826.0,0.9539201]
[1743361583034,1.09546,1826.4,1826.1,1.09563]
[1743361583227,2.51015243,1826.3,1826.0,2.0495901]
[1743361583737,1.41461243,1826.3,1826.0,0.548]
[1743361583931,3.2078,1826.2,1825.8,1.442]
[1743361584138,2.50208,1826.1,1825.8,2.93073722]
[1743361584436,1.09572,1826.0,1825.8,3.08579]
[1743361584638,2.50212,1826.0,1825.8,3.08579]
[1743361585236,1.4064,1826.0,1825.8,3.08579]
[1743361586034,7.6038,1825.9,1825.4,3.2078]
[1743361586231,7.6038,1825.9,1825.5,1.64399]
[1743361586232,1.09592,1825.7,1825.5,1.64399]
[1743361586438,2.55686,1825.8,1825.5,1.64399]
[1743361586826,1.09589,1825.7,1825.5,0.548]
[1743361587032,2.55695,1825.6,1825.4,4.30384]
[1743361587237,1.461,1825.6,1825.4,1.09606]
[1743361587438,2.55695,1825.6,1825.4,1.09606]
[1743361587639,1.461,1825.6,1825.4,1.09606]
[1743361588041,2.55695,1825.6,1825.4,1.09606]
[1743361588239,1.461,1825.6,1825.4,1.09606]
[1743361588741,5.51586,1825.8,1825.5,1.09596]
[1743361589037,7.00776,1825.8,1825.6,1.09594]
[1743361589238,7.00776,1825.8,1825.2,10.3662]
[1743361589642,7.00776,1825.8,1825.5,1.09596]
[1743361589840,7.00776,1825.8,1825.3,7.42010993]
[1743361590033,7.00776,1825.8,1825.3,0.39478615]
[1743361590241,7.00778,1825.8,1825.2,10.3662]
[1743361590441,5.9119,1825.8,1825.5,1.09597]
[1743361590740,1.09589,1825.7,1825.5,1.09597]
[1743361590941,1.4092,1825.6,1825.5,1.09597]
[1743361591543,0.6862,1826.1,1825.5,1.09597]
[1743361591544,1.79951,1826.2,1826.0,1.0957]
[1743361591737,1.4092,1826.1,1826.0,1.0957]
[1743361592539,5.50177243,1826.3,1826.1,1.09563]
[1743361592744,6.91097243,1826.3,1826.1,1.09563]
[1743361592949,5.81541243,1826.3,1826.2,2.59128]
[1743361593146,6.91093243,1826.3,1826.2,1.4957]
[1743361593350,6.91095243,1826.3,1826.1,1.09564]
[1743361593546,1.09563,1826.2,1826.0,1.0957]
[1743361593849,1.4092,1826.2,1826.1,1.4957]
[1743361594148,1.4092,1826.2,1826.1,2.59134]
[1743361596052,0.00821243,1826.3,1826.2,1.09558]
[1743361596245,1.51631243,1826.3,1826.2,2.55978]
[1743361596441,0.00821243,1826.3,1826.2,2.55978]
[1743361597540,2.48483243,1826.3,1826.2,1.4642]
[1743361598152,2.48483243,1826.3,1826.2,2.55978]
[1743361598456,1.38931243,1826.3,1826.2,2.55978]
[1743361599048,0.00821243,1826.3,1826.2,2.55978]
[1743361601255,1.46781243,1826.3,1826.2,2.55978]
[1743361603454,2.56333243,1826.3,1826.2,1.4642]
[1743361603645,1.46781243,1826.3,1826.2,2.55978]
[1743361604049,1.46781243,1826.3,1826.2,1.09558]
[1743361605055,0.00821243,1826.3,1826.2,1.09558]
[1743361605453,0.00821243,1826.3,1826.2,2.54058]
[1743361605651,0.00821243,1826.3,1826.2,3.97658]
[1743361606758,1.39101243,1826.3,1826.2,3.97658]
[1743361606957,1.39101243,1826.3,1826.2,1.09558]
[1743361610562,1.39101243,1826.3,1826.2,2.49728]
[1743361611367,1.8196,1826.7,1826.2,4.14066]
[1743361611667,1.4833,1826.6,1826.5,1.09535]
[1743361611863,2.57864,1826.6,1826.4,1.09541]
[1743361612067,2.57864,1826.6,1826.2,2.8395]
[1743361612255,1.0955,1826.4,1826.2,1.09558]
[1743361612460,1.3797,1826.3,1826.2,1.10379243]
[1743361615662,3.2078,1828.4,1826.7,3.2078]
[1743361615865,2.58425,1828.3,1828.0,1.0945]
[1743361616067,1.4899,1828.3,1827.8,2.54829]
[1743361616268,1.09438,1828.2,1827.9,1.4537]
[1743361616467,1.4899,1828.1,1827.9,1.4537]